fUSD/lending_fUSD_20260116
["ID","MTS","AMOUNT","RATE_DAILY","PERIOD"]
[402188043,1768577443836,-1000.0,0.00018,2]
[402188044,1768577443847,-1000.0,0.00018,2]
[402188045,1768577443859,-1000.0,0.00018,2]
[402188046,1768577443873,-1000.0,0.00018,2]
[402188047,1768577443883,-1000.0,0.00018,2]
[402188048,1768577443893,-1000.0,0.00018,2]
[402188049,1768577443902,-1000.0,0.00018,2]
[402188050,1768577443914,-1000.0,0.00018,2]
[402188051,1768577443923,-1000.0,0.00018,2]
[402188052,1768577443934,-1000.0,0.00018,2]
[402188053,1768577443943,-1000.0,0.00018,2]
[402188054,1768577443952,-1000.0,0.00018,2]
[402188055,1768577443962,-1000.0,0.00018,2]
[402188056,1768577443972,-1000.0,0.00018,2]
[402188057,1768577443982,-1000.0,0.00018,2]
[402188058,1768577443993,-1000.0,0.00018,2]
[402188059,1768577444003,-1000.0,0.00018,2]
[402188061,1768577444013,-961.02146272,0.00018,2]
[402188063,1768577444023,-150.0,0.00018,2]
[402188065,1768577444032,-150.0,0.00018,2]
[402188067,1768577444042,-200.0,0.00018,2]
[402188069,1768577444052,-150.0,0.00018,2]
[402188072,1768577444061,-171.211,0.00018,2]
[402188075,1768577444071,-150.0,0.00018,2]
[402188077,1768577444080,-150.299,0.00018,2]
[402188078,1768577444091,-277.435,0.00018,2]
[402188080,1768577444101,-150.135,0.00018,2]
[402188082,1768577444111,-150.0,0.00018,2]
[402188084,1768577444120,-150.0,0.00018,2]
[402188086,1768577444130,-2959.22288596,0.00018,2]
[402188087,1768577444139,-150.0,0.00018,2]
[402188088,1768577444149,-11165.44638684,0.00018,2]
[402188090,1768577444159,-150.0,0.00018,2]
[402188093,1768577444168,-3571.5038216,0.00018,2]
[402188096,1768577444178,-151.1632,0.00018,2]
[402188099,1768577444187,-412.0,0.00018,2]
[402188101,1768577444196,-1062039.4123007,0.00018,2]
[402188103,1768577444220,-1066.30246125,0.00018,2]
[402188104,1768577444231,-512.27802841,0.00018,2]
[402188105,1768577444721,-151.0,0.0001685,2]
[402188106,1768577444731,-306.05036136,0.00016881,2]
[402188107,1768577444740,-1270.33699047,0.000179,2]
[402188108,1768577444750,-318.00621116,0.00018,2]
[402188109,1768577444761,-834.90360017,0.00018,2]
[402188110,1768577444773,-1218.10437464,0.00018,2]
[402188111,1768577444785,-289644.88746278,0.00018,2]
[402188112,1768577444800,-287.12023837,0.00018,2]
[402188113,1768577444812,-2348.81410111,0.00018,2]
[402188116,1768577444855,-1573043.34263447,0.00018,2]
[402188117,1768577444869,-502.99139351,0.00018,2]
[402188119,1768577444881,-2433.80048799,0.00018,2]
[402188121,1768577444892,-2287.30477774,0.00018,2]
[402188123,1768577444905,-633.92371775,0.00018,2]
[402188125,1768577444916,-258.16871056,0.00018,2]
[402188128,1768577444928,-94800.0,0.00018,2]
[402188130,1768577444940,-11877.27714,0.00018,2]
[402188132,1768577444951,-637.30701203,0.00018,2]
[402188134,1768577444963,-1035.94218875,0.00018,2]
[402188136,1768577444975,-1014.09508778,0.00018,2]
[402188162,1768577446364,-3927.59178356,0.00018,2]
[402188163,1768577446375,-280.65965501,0.00018,2]
[402188166,1768577578391,289.29111783,0.00015236,2]
[402188167,1768577592934,158.02,0.00013403,2]
[402188170,1768577890130,245.89745015,0.00015236,2]
[402188171,1768577963518,1537.3,7.662e-05,2]
[402188172,1768577963716,1537.3,8.066e-05,2]
[402188173,1768577963935,1537.3,8.469e-05,2]
[402188174,1768577964137,1537.3,8.872e-05,2]
[402188175,1768577964383,1537.3,9.276e-05,2]
[402188176,1768577964546,1537.3,9.679e-05,2]
[402188177,1768577964925,776.21,0.00010082,2]
[402188178,1768577964949,761.09,0.00010082,2]
[402188179,1768577965071,1537.3,0.00010485,2]
[402188180,1768577965194,1537.3,0.00010889,2]
[402188181,1768577965403,1537.3,0.00011292,2]
[402188182,1768577965652,1537.3,0.00011695,2]
[402188183,1768577965861,1537.3,0.00012099,2]
[402188184,1768577966390,1537.3,0.00012502,2]
[402188185,1768577966590,15.12,0.00012905,2]
[402188186,1768577966614,1522.18,0.00012905,2]
[402188187,1768577966821,1537.3,0.00013308,2]
[402188188,1768577967037,1537.3,0.00013712,2]
[402188189,1768577967263,1537.3,0.00014115,2]
[402188190,1768577967479,1537.3,0.00014518,2]
[402188191,1768577967716,1537.3,0.00014922,2]
[402188192,1768577969877,-392.81808231,0.00015325,2]
[402188193,1768577972999,-300.0,0.00015325,2]
[402188194,1768577976266,-505.56703205,0.00015325,2]
[402188195,1768577982419,-170.81596407,0.00015325,2]
[402188196,1768578002390,-150.0,0.00015325,2]
[402188197,1768578018125,1263.0,0.00016774,30]
[402188198,1768578018644,1375.31689939,0.00016774,30]
[402188199,1768578018729,151.0,0.00016774,30]
[402188200,1768578018760,151.0,0.00016774,30]
[402188201,1768578019285,151.0,0.00016774,30]
[402188202,1768578019408,151.0,0.00016774,30]
[402188203,1768578019817,151.0,0.00016774,30]
[402188204,1768578019959,151.0,0.00016774,30]
[402188205,1768578020448,152.0,0.00016774,30]
[402188206,1768578020482,151.0,0.00016774,30]
[402188207,1768578020966,153.56105958,0.00016774,30]
[402188208,1768578020993,152.0,0.00016774,30]
[402188209,1768578021514,159.95226052,0.00016774,30]
[402188210,1768578022495,3240.0,0.00015098,2]
[402188211,1768578022830,154.39832422,0.00016774,30]
[402188212,1768578110689,392.65,0.00014901,2]
[402188213,1768578143501,-18.09892157,0.00015325,2]
[402188214,1768578143524,-277.0,0.00015325,2]
[402188215,1768578143546,-334.307,0.00015585,2]
[402188216,1768578143566,-157.052,0.00015585,2]
[402188217,1768578143587,-500.0,0.00015585,2]
[402188218,1768578143608,-158.11278045,0.00015585,2]
[402188219,1768578143631,-195.0,0.00015585,2]
[402188220,1768578143653,-1200.0,0.00015585,2]
[402188221,1768578143676,-407.85997861,0.00015585,2]
[402188222,1768578143701,-436.85371026,0.00015586,2]
[402188223,1768578143723,-306.85763844,0.00015586,2]
[402188224,1768578143745,-300.0,0.0001559,2]
[402188225,1768578143767,-300.0,0.0001559,2]
[402188226,1768578143788,-2059.52,0.00015602,2]
[402188227,1768578143811,-153.12321647,0.00015643,2]
[402188228,1768578143834,-182.93,0.00015675,2]
[402188229,1768578143856,-182.93,0.00015675,2]
[402188230,1768578143877,-300.0,0.00015683,2]
[402188231,1768578143905,-404.88801068,0.00015684,2]
[402188232,1768578143929,-216.36168322,0.00015684,2]
[402188233,1768578143952,-192.33814419,0.00015684,2]
[402188234,1768578143975,-500.0,0.00015684,2]
[402188235,1768578143997,-500.0,0.00015684,2]
[402188236,1768578144019,-500.0,0.00015684,2]
[402188237,1768578144041,-500.0,0.00015684,2]
[402188238,1768578144063,-253.26753485,0.00015684,2]
[402188239,1768578144095,-500.0,0.00015684,2]
[402188240,1768578144128,-500.0,0.00015684,2]
[402188241,1768578144156,-500.0,0.00015684,2]
[402188242,1768578144183,-500.0,0.00015684,2]
[402188243,1768578144218,-500.0,0.00015684,2]
[402188244,1768578144248,-500.0,0.00015684,2]
[402188245,1768578144279,-500.0,0.00015684,2]
[402188246,1768578144309,-500.0,0.00015684,2]
[402188247,1768578144335,-500.0,0.00015684,2]
[402188248,1768578144363,-560.31170472,0.00015684,2]
[402188249,1768578144390,-500.0,0.00015684,2]
[402188250,1768578144415,-500.0,0.00015684,2]
[402188251,1768578144441,-500.0,0.00015684,2]
[402188252,1768578144468,-500.0,0.00015684,2]
[402188253,1768578144495,-500.0,0.00015684,2]
[402188254,1768578144522,-500.0,0.00015684,2]
[402188255,1768578144550,-500.0,0.00015684,2]
[402188256,1768578144576,-500.0,0.00015684,2]
[402188257,1768578144602,-500.0,0.00015684,2]
[402188258,1768578144629,-500.0,0.00015684,2]
[402188259,1768578144654,-500.0,0.00015684,2]
[402188260,1768578144676,-2357.158,0.00015684,2]
[402188261,1768578144699,-173.472,0.00015684,2]
[402188262,1768578144726,-276372.55767654,0.00015685,2]
[402188263,1768578200361,209.01283263,0.00015236,2]
[402188266,1768578318011,1263.0,0.00016774,30]
[402188267,1768578318610,1263.0,0.00016774,30]
[402188268,1768578319171,274.16962213,0.00016774,30]
[402188269,1768578331913,158.4172815,0.00016774,30]
[402188270,1768578432694,4033.41,0.00015206,2]
[402188271,1768578453411,10000.01,0.00015169,2]
[402188272,1768578453435,10000.01,0.00015169,2]
[402188273,1768578453459,10000.01,0.00015169,2]
[402188274,1768578453485,10000.01,0.00015169,2]
[402188275,1768578453507,7377.93,0.00015169,2]
[402188276,1768578512073,177.66090774,0.00015236,2]
[402188277,1768578554605,-300.97695748,0.00015485,2]
[402188278,1768578554629,-253.3016,0.00015485,2]
[402188279,1768578554651,-195.0,0.00015505,2]
[402188280,1768578554675,-300.0,0.00015582,2]
[402188281,1768578554698,-150.0,0.00015582,2]
[402188282,1768578554728,-998800.72144252,0.00015583,2]
[402188283,1768578570038,7214.2,0.00013174,2]
[402188298,1768578631603,-195.7224227,0.00015485,2]
[402188300,1768578631613,-195.0,0.00015485,2]
[402188301,1768578631622,-279.0,0.00015485,2]
[402188303,1768578631634,-195.0,0.00015533,2]
[402188304,1768578631643,-250.0,0.00015534,2]
[402188305,1768578631653,-300.0,0.00015534,2]
[402188306,1768578631662,-250.0,0.0001558,2]
[402188307,1768578631672,-300.0,0.0001558,2]
[402188308,1768578631682,-45.72920401,0.0001558,2]
[402188309,1768578631693,-254.27079599,0.0001558,2]
[402188310,1768578631703,-28.06207282,0.0001558,2]
[402188311,1768578631714,-344.81,0.0001558,2]
[402188312,1768578631726,-52.90126096,0.0001558,2]
[402188313,1768578631735,-1199.27855748,0.00015583,2]
[402188314,1768578631745,-1200.0,0.00015584,2]
[402188315,1768578631754,-300.0,0.00015584,2]
[402188316,1768578631764,-2500.0,0.00015585,2]
[402188317,1768578631774,-393.16833927,0.00015643,2]
[402188318,1768578631783,-300.0,0.00015672,2]
[402188319,1768578631793,-784.0035911,0.00015673,2]
[402188320,1768578631802,-300.0,0.00015682,2]
[402188321,1768578631812,-447.0,0.00015682,2]
[402188322,1768578631821,-45075.5333002,0.00015683,2]
[402188323,1768578631831,-965.7324941,0.00015683,2]
[402188324,1768578631840,-500.0,0.00015684,2]
[402188325,1768578631850,-304.09959517,0.00015684,2]
[402188326,1768578631859,-500.0,0.00015684,2]
[402188327,1768578631869,-500.0,0.00015684,2]
[402188328,1768578631881,-500.0,0.00015684,2]
[402188329,1768578631890,-500.0,0.00015684,2]
[402188330,1768578631899,-500.0,0.00015684,2]
[402188331,1768578631909,-500.0,0.00015684,2]
[402188332,1768578631919,-500.0,0.00015684,2]
[402188333,1768578631928,-500.0,0.00015684,2]
[402188334,1768578631937,-500.0,0.00015684,2]
[402188335,1768578631947,-500.0,0.00015684,2]
[402188336,1768578631956,-500.0,0.00015684,2]
[402188337,1768578631966,-500.0,0.00015684,2]
[402188338,1768578631975,-500.0,0.00015684,2]
[402188339,1768578631985,-500.0,0.00015684,2]
[402188340,1768578631994,-500.0,0.00015684,2]
[402188341,1768578632004,-500.0,0.00015684,2]
[402188342,1768578632014,-198.34594795,0.00015684,2]
[402188343,1768578632023,-1223.47,0.00015684,2]
[402188344,1768578632032,-500.0,0.00015773,2]
[402188345,1768578632043,-500.0,0.00015773,2]
[402188347,1768578632052,-500.0,0.00015773,2]
[402188349,1768578632062,-500.0,0.00015773,2]
[402188351,1768578632071,-534.15123758,0.00015773,2]
[402188353,1768578632082,-151.37508259,0.00015773,2]
[402188355,1768578632091,-393.1683392,0.00015894,2]
[402188356,1768578632100,-1852.42,0.0001591,2]
[402188357,1768578632110,-784.00359107,0.0001592,2]
[402188358,1768578632119,-1223.47,0.00015958,2]
[402188359,1768578632129,-306.85763838,0.00015972,2]
[402188361,1768578632139,-646.12861986,0.00016026,2]
[402188363,1768578632148,-393.1683392,0.00016145,2]
[402188365,1768578632157,-784.00359107,0.00016168,2]
[402188366,1768578632167,-500.0,0.00016199,2]
[402188367,1768578632176,-1223.47,0.00016232,2]
[402188368,1768578632185,-2423.27,0.00016306,2]
[402188369,1768578632195,-203.73721321,0.00016321,2]
[402188370,1768578632204,-306.85763838,0.00016357,2]
[402188371,1768578632215,-999.0,0.00016359,3]
[402188372,1768578632226,-200.0,0.00016373,2]
[402188373,1768578632235,-393.1683392,0.00016395,2]
[402188374,1768578632244,-200.0,0.00016403,2]
[402188375,1768578632255,-784.00359107,0.00016415,2]
[402188376,1768578632265,-500.0,0.00016438,2]
[402188377,1768578632275,-500.0,0.00016438,2]
[402188378,1768578632286,-500.0,0.00016438,2]
[402188379,1768578632296,-451.79549773,0.00016438,2]
[402188380,1768578632305,-148.4084186,0.00016505,2]
[402188381,1768578632325,-1075.0615814,0.00016505,2]
[402188382,1768578632335,-267.57937921,0.00016521,2]
[402188383,1768578632347,-232.42062079,0.00016521,2]
[402188384,1768578632356,-245.55818512,0.00016646,2]
[402188385,1768578632393,-147.61015408,0.00016646,2]
[402188386,1768578632403,-784.00359107,0.00016663,2]
[402188387,1768578632412,-274.26,0.00016741,2]
[402188388,1768578632421,-306.85763838,0.00016743,2]
[402188389,1768578632431,-842.23170041,0.00016779,2]
[402188390,1768578632442,-381.23829959,0.00016779,2]
[402188391,1768578632452,-295.0,0.00016811,2]
[402188392,1768578632461,-148.59170041,0.00016897,2]
[402188393,1768578632480,-244.57663879,0.00016897,2]
[402188394,1768578632490,-784.00359107,0.0001691,2]
[402188395,1768578632499,-530.42704306,0.00016999,2]
[402188396,1768578632509,-250.0,0.00017,2]
[402188397,1768578632518,-193.0,0.00017033,2]
[402188398,1768578632527,-250.0,0.00017033,2]
[402188399,1768578632536,-300.0,0.00017033,2]
[402188400,1768578632546,-300.0,0.00017033,2]
[402188401,1768578632555,-600.0,0.00017033,2]
[402188402,1768578632564,-195.0,0.00017033,2]
[402188403,1768578632574,-1223.47,0.00017053,2]
[402188404,1768578632584,-322.6107,0.00017099,2]
[402188405,1768578632593,-500.0,0.00017099,2]
[402188406,1768578632602,-500.0,0.00017099,2]
[402188407,1768578632612,-1000.0,0.00017099,2]
[402188408,1768578632621,-500.0,0.00017099,2]
[402188409,1768578632633,-28.76762202,0.00017099,2]
[402188410,1768578632644,-860.0,0.00017099,2]
[402188411,1768578632655,-111.23237798,0.00017099,2]
[402188412,1768578632665,-250.0,0.00017099,2]
[402188413,1768578632674,-500.0,0.00017099,2]
[402188414,1768578632683,-1239.0,0.00017099,2]
[402188415,1768578632693,-1000.0,0.00017099,2]
[402188416,1768578632703,-250.0,0.00017099,2]
[402188417,1768578632712,-500.0,0.00017099,2]
[402188418,1768578632722,-1000.0,0.00017099,2]
[402188419,1768578632731,-250.0,0.00017099,2]
[402188420,1768578632741,-500.0,0.00017099,2]
[402188421,1768578632751,-773.85747916,0.00017099,2]
[402188422,1768578632762,-226.14252084,0.00017099,2]
[402188423,1768578632771,-250.0,0.00017099,2]
[402188424,1768578632781,-500.0,0.00017099,2]
[402188425,1768578632791,-84.78476422,0.00017099,2]
[402188426,1768578632802,-165.21523578,0.00017099,2]
[402188427,1768578632811,-1000.0,0.00017099,2]
[402188428,1768578632822,-500.0,0.00017099,2]
[402188429,1768578632831,-250.0,0.00017099,2]
[402188430,1768578632840,-1000.0,0.00017099,2]
[402188431,1768578632850,-500.0,0.00017099,2]
[402188432,1768578632859,-250.0,0.00017099,2]
[402188433,1768578632868,-1000.0,0.00017099,2]
[402188434,1768578632879,-500.0,0.00017099,2]
[402188435,1768578632889,-250.0,0.00017099,2]
[402188436,1768578632898,-1000.0,0.00017099,2]
[402188437,1768578632907,-500.0,0.00017099,2]
[402188438,1768578632917,-250.0,0.00017099,2]
[402188439,1768578632926,-1000.0,0.00017099,2]
[402188440,1768578632935,-250.0,0.00017099,2]
[402188441,1768578632945,-1000.0,0.00017099,2]
[402188442,1768578632955,-250.0,0.00017099,2]
[402188443,1768578632965,-574.12855637,0.00017099,2]
[402188444,1768578632975,-620.0,0.00017099,2]
[402188445,1768578632984,-1000.0,0.00017099,2]
[402188446,1768578632993,-1000.0,0.00017099,2]
[402188447,1768578633003,-1000.0,0.00017099,2]
[402188448,1768578633012,-1000.0,0.00017099,2]
[402188449,1768578633021,-1000.0,0.00017099,2]
[402188450,1768578633031,-1000.0,0.00017099,2]
[402188451,1768578633040,-1000.0,0.00017099,2]
[402188452,1768578633049,-1000.0,0.00017099,2]
[402188453,1768578633058,-60.41833923,0.00017099,2]
[402188454,1768578633070,-939.58166077,0.00017099,2]
[402188455,1768578633080,-1000.0,0.00017099,2]
[402188456,1768578633090,-682.38495071,0.00017099,2]
[402188457,1768578633105,-317.61504929,0.00017099,2]
[402188458,1768578633115,-59.78495071,0.00017129,2]
[402188459,1768578633126,-247.07268767,0.00017129,2]
[402188460,1768578633136,-140.24914914,0.00017131,2]
[402188461,1768578633147,-1539.75085086,0.00017131,2]
[402188462,1768578633156,-254.72665245,0.0001714,2]
[402188463,1768578633167,-165.27334755,0.0001714,2]
[402188464,1768578633177,-393.1683392,0.00017148,2]
[402188465,1768578633186,-784.00359107,0.00017158,2]
[402188466,1768578633195,-166.66,0.00017275,2]
[402188467,1768578633205,-1223.47,0.00017327,2]
[402188468,1768578633218,-392.20935167,0.00017398,2]
[402188474,1768578637680,-0.95898753,0.00017398,2]
[402188475,1768578637690,-784.00359107,0.00017405,2]
[402188476,1768578637700,-2000.0,0.000175,2]
[402188477,1768578637710,-502.33,0.000175,2]
[402188478,1768578637722,-306.85763838,0.00017514,2]
[402188479,1768578637732,-505.83671982,0.00017599,2]
[402188480,1768578637741,-455.89914887,0.00017601,2]
[402188481,1768578637949,-267.0,0.00017601,2]
[402188482,1768578638008,-500.61601861,0.00017601,2]
[402188483,1768578638017,-445.06398139,0.0001761,2]
[402188484,1768578638029,-1093.25001861,0.0001761,2]
[402188485,1768578638039,-165.51315467,0.0001764,2]
[402188486,1768578638049,-595.37131296,0.00017647,2]
[402188487,1768578638059,-393.1683392,0.00017649,2]
[402188488,1768578638069,-784.00359107,0.00017653,2]
[402188489,1768578638079,-2973.06401949,0.00017678,2]
[402188490,1768578638094,-4270.57317744,0.00017678,2]
[402188491,1768578638106,-2814.07376707,0.00017678,2]
[402188492,1768578638116,-150.0,0.00017699,2]
[402188493,1768578638127,-178.0,0.00017711,2]
[402188494,1768578638138,-734.47,0.0001772,2]
[402188495,1768578638148,-299.99,0.00017728,4]
[402188496,1768578638158,-1903.03773793,0.00017728,2]
[402188497,1768578638170,-311.59230723,0.00017728,2]
[402188498,1768578638210,-1057.09664716,0.00017728,2]
[402188499,1768578638224,-122.10330768,0.00017728,2]
[402188500,1768578638234,-258.66869232,0.00017728,2]
[402188501,1768578638290,-978.74130768,0.00017728,2]
[402188503,1768578638300,-464.7184629,0.00017728,2]
[402188506,1768578638312,-219.6415371,0.00017728,2]
[402188507,1768578638322,-180.0,0.00017791,2]
[402188508,1768578638332,-1026.3760489,0.0001782,2]
[402188509,1768578638344,-368.3661211,0.0001782,2]
[402188510,1768578638354,-1394.74218,0.0001782,2]
[402188511,1768578638364,-1217.73844755,0.00017837,7]
[402188512,1768578638374,-3213.63102958,0.00017837,7]
[402188513,1768578638385,-2393.97524672,0.00017837,7]
[402188514,1768578638397,-3275.25081332,0.00017837,7]
[402188515,1768578638406,-7282.32802761,0.00017837,7]
[402188516,1768578638419,-1198.49510407,0.00017837,7]
[402188517,1768578638428,-3178.83841523,0.00017837,7]
[402188518,1768578638439,-348.63411783,0.00017837,7]
[402188519,1768578638450,-7947.37986694,0.00017837,7]
[402188520,1768578638460,-166.66,0.00017845,2]
[402188521,1768578638470,-7342.4522954,0.00017882,3]
[402188588,1768578639783,-378.39146381,0.00017882,3]
[402188607,1768578639865,-644.20590704,0.00017882,3]
[402188623,1768578639951,-9436.09999998,0.00017882,3]
[402188626,1768578639964,-1566.21523443,0.00017882,3]
[402188630,1768578639975,-300.7660394,0.00017882,3]
[402188633,1768578639987,-3981.30851948,0.00017882,3]
[402188640,1768578640043,-1350.56054046,0.00017882,3]
[402188642,1768578640053,-25000.0,0.00017891,3]
[402188644,1768578640063,-500.0,0.00017897,2]
[402188646,1768578640072,-4188.1258,0.000179,2]
[402188648,1768578640082,-651.0,0.000179,3]
[402188650,1768578640091,-306.85763838,0.000179,2]
[402188652,1768578640100,-393.1683392,0.000179,2]
[402188654,1768578640110,-784.00359107,0.000179,2]
[402188656,1768578640119,-25000.0,0.000179,3]
[402188658,1768578640128,-189.14605106,0.000179,3]
[402188660,1768578640138,-1201.29277068,0.000179,2]
[402188662,1768578640147,-4680.0,0.000179,2]
[402188663,1768578640157,-178.0,0.0001792,2]
[402188664,1768578640166,-500.86300642,0.00017996,2]
[402188665,1768578640176,-157.4432221,0.00017998,2]
[402188666,1768578640186,-300.0,0.00017999,2]
[402188667,1768578640195,-670.59480173,0.00017999,2]
[402188668,1768578640205,-307.33687418,0.00017999,2]
[402188669,1768578640215,-1007.5651,0.00017999,2]
[402188670,1768578640226,-300.0,0.00017999,2]
[402188671,1768578640235,-671.00190679,0.00017999,2]
[402188672,1768578640244,-6833377.71297866,0.00018,2]
[402188673,1768578640264,-3828.86735665,0.00018,2]
[402188674,1768578640275,-5678.50813704,0.00018,2]
[402188675,1768578640287,-2323.398704,0.00018,2]
[402188676,1768578640298,-943.49055009,0.00018,2]
[402188677,1768578640310,-1890.52566694,0.00018,2]
[402188678,1768578640336,-6456.96192333,0.00018,2]
[402188979,1768578645869,-151.0,0.00016303,2]
[402188980,1768578645879,-151.0,0.00016303,2]
[402188981,1768578645888,-140938.30542044,0.00018,2]
[402188982,1768578645903,-19806.94863755,0.00018,2]
[402188983,1768578645925,-3125.08307439,0.00018,2]
[402188984,1768578645954,-418.180003,0.00018,2]
[402188985,1768578645975,-1034.55156752,0.00018,2]
[402188986,1768578645987,-423.74283176,0.00018,2]
[402188987,1768578645999,-326.0,0.00018,2]
[402188988,1768578646095,-83535.91604653,0.00018,2]
[402189140,1768578647919,-1350.74603079,0.00018,2]
[402189142,1768578647932,-1507.53222632,0.00018,2]
[402189155,1768578653314,319.8126461,0.00015684,2]
[402189156,1768578683186,-500.0,0.00015773,2]
[402189157,1768578728863,500.74973973,0.00015773,2]
[402189158,1768578784155,341.0058,0.00015385,2]
[402189159,1768578822441,207.53926467,0.00016,2]
[402189160,1768578843779,500.0,0.00015773,2]
[402189161,1768578904870,500.0,0.00015684,2]
[402189162,1768578905171,500.0,0.00015684,2]
[402189163,1768578905404,500.0,0.00015684,2]
[402189164,1768578905631,500.0,0.00015684,2]
[402189165,1768578907105,500.0,0.00015773,2]
[402189166,1768578907859,500.0,0.00015773,2]
[402189167,1768578930421,500.0,0.00015684,2]
[402189168,1768578930662,500.86300642,0.00015684,2]
[402189169,1768578963212,501.0268674,0.00015773,2]
[402189170,1768579026924,500.0,0.00015773,2]
[402189171,1768579032709,549.7962751,0.00015684,2]
[402189172,1768579134406,176.999684,0.00016,2]
[402189173,1768579180624,1000.0,0.00030136,120]
[402189174,1768579190212,1000.0,0.00030136,120]
[402189175,1768579222464,212.81,0.00015783,3]
[402189176,1768579317004,10000.0,0.00030137,120]
[402189177,1768579329516,1956.79,0.00030137,120]
[402189178,1768579344552,1469.89,0.00015704,2]
[402189179,1768579403222,206.35,0.00015567,2]
[402189180,1768579434456,2171.06,0.00015574,2]
[402189181,1768579443813,150.4497314,0.00016,2]
[402189182,1768579489854,166.66,0.00014828,2]
[402189183,1768579490099,166.66,0.0001514,2]
[402189184,1768579490280,166.66,0.00015452,2]
[402189185,1768579490591,166.66,0.00015765,2]
[402189186,1768579504269,159.85,0.00028596,120]
[402189187,1768579505689,438.97,0.00015487,2]
[402189188,1768579543708,500.0,0.00015425,2]
[402189189,1768579602459,1000.0,0.00015483,2]
[402189190,1768579603127,211.81856156,0.00015957,2]
[402189191,1768579618720,500.0,0.00015684,2]
[402189192,1768579618816,353.54845269,0.00015684,2]
[402189193,1768579804996,160.16,0.00028596,120]
[402189206,1768579831956,-317.01392628,0.0001604,2]
[402189207,1768579831967,-284.0,0.0001604,2]
[402189208,1768579831976,-172.81358376,0.00016048,2]
[402189209,1768579831985,-600.0,0.00016048,2]
[402189210,1768579831995,-195.0,0.00016048,2]
[402189211,1768579832004,-437.4530097,0.00016053,2]
[402189212,1768579832013,-195.0,0.00016053,2]
[402189213,1768579832023,-620.0,0.00016056,2]
[402189214,1768579832033,-300.0,0.00016056,2]
[402189215,1768579832042,-1480.90905134,0.00016057,2]
[402189216,1768579832053,-503.21044542,0.00016057,2]
[402189217,1768579832064,-424.01705832,0.00016057,2]
[402189218,1768579832095,-287.06431718,0.00016057,2]
[402189219,1768579832107,-193.24766176,0.00016057,2]
[402189220,1768579832117,-641.74190938,0.00016057,2]
[402189221,1768579832129,-1.74809062,0.00016057,2]
[402189222,1768579832140,-498.25190938,0.00016057,2]
[402189223,1768579832155,-1.74809062,0.00016057,2]
[402189224,1768579832165,-1200.0,0.00016072,2]
[402189225,1768579832174,-166.66,0.00016077,2]
[402189226,1768579832184,-300.0,0.00016246,2]
[402189227,1768579832194,-151.0,0.00016247,2]
[402189228,1768579832203,-151.0,0.00016247,2]
[402189229,1768579832213,-151.0,0.00016247,2]
[402189230,1768579832222,-151.0,0.00016248,2]
[402189231,1768579832232,-151.0,0.00016248,2]
[402189232,1768579832242,-151.0,0.00016251,2]
[402189233,1768579832251,-151.0,0.00016251,2]
[402189234,1768579832261,-151.0,0.00016251,2]
[402189235,1768579832270,-151.0,0.00016251,2]
[402189236,1768579832280,-151.0,0.00016251,2]
[402189237,1768579832290,-4111.8548,0.00016372,2]
[402189238,1768579832299,-166.66,0.00016389,2]
[402189239,1768579832308,-206.35,0.00016432,2]